bitfinex-derivatives/quotes_BNBF0:USTF0_20250617
["timestamp","ask_amount","ask_price","bid_price","bid_amount"]
[1750196539052,0.2682815,648.97,647.88,1.36]
[1750196539053,1.15042719,648.25,647.88,1.36]
[1750196539256,1.15042719,648.26,647.88,1.36]
[1750196539856,1.5284217,648.38,647.88,1.36]
[1750196540053,2.29263255,648.49,647.88,1.36]
[1750196541859,1.15408875,648.24,647.88,1.36]
[1750196542655,1.15408875,648.23,647.88,1.36]
[1750196543255,1.15408875,648.24,647.88,1.36]
[1750196544360,1.15408875,648.25,647.88,1.36]
[1750196544656,1.15408875,648.24,647.88,1.36]
[1750196545360,1.15408875,648.25,647.89,0.856]
[1750196546357,1.15408875,648.26,647.89,0.856]
[1750196547163,1.15408875,648.25,647.89,0.856]
[1750196547360,1.15408875,648.26,647.89,0.856]
[1750196547560,1.15408875,648.25,647.89,0.856]
[1750196548262,1.15408875,648.26,647.89,0.856]
[1750196548759,1.15408875,648.25,647.89,0.856]
[1750196551159,1.15408875,648.27,647.89,0.856]
[1750196551364,1.15408875,648.23,647.89,0.856]
[1750196552261,1.15408875,648.22,647.89,0.856]
[1750196552465,1.15408875,648.24,647.89,0.856]
[1750196552664,1.15408875,648.25,647.89,0.856]
[1750196552863,1.15408875,648.26,647.89,0.856]
[1750196553260,1.15408875,648.3,647.89,0.856]
[1750196553560,1.15408875,648.34,647.89,0.856]
[1750196553865,1.15408875,648.38,647.89,0.856]
[1750196554360,1.15408875,648.36,647.89,0.856]
[1750196554760,1.15408875,648.37,647.89,0.856]
[1750196556066,1.15408875,648.36,647.89,0.856]
[1750196556961,1.15408875,648.37,647.89,0.856]
[1750196557265,1.15408875,648.36,647.89,0.856]
[1750196558965,1.15408875,648.37,647.89,0.856]
[1750196561965,1.15408875,648.37,647.9,0.79]
[1750196562270,1.15408875,648.36,647.9,0.79]
[1750196563766,1.15408875,648.35,647.9,0.79]
[1750196563967,1.15408875,648.34,647.9,0.79]
[1750196565672,1.15408875,648.33,647.91,1.156]
[1750196565968,1.15408875,648.34,647.91,1.156]
[1750196567471,1.15408875,648.33,647.91,1.156]
[1750196567775,1.15408875,648.32,647.91,1.156]
[1750196568476,1.15408875,648.31,647.91,1.156]
[1750196570478,1.15408875,648.3,647.91,1.156]
[1750196571980,1.15408875,648.31,647.91,1.156]
[1750196572479,1.15408875,648.3,647.91,1.156]
[1750196575484,1.15408875,648.3,647.92,0.801]
[1750196575886,1.15408875,648.29,647.92,0.801]
[1750196576085,1.15408875,648.3,647.92,0.801]
[1750196576586,1.15408875,648.29,647.92,0.801]
[1750196576786,1.15408875,648.28,647.92,0.801]
[1750196577385,1.15408875,648.27,647.92,0.801]
[1750196581496,1.15408875,648.28,647.92,0.801]
[1750196582192,1.15408875,648.27,647.92,0.801]
[1750196585197,1.15408875,648.26,647.92,0.801]
[1750196588903,1.15408875,648.25,647.92,0.801]
[1750196591203,1.15408875,648.24,647.92,0.801]
[1750196592402,1.15408875,648.23,647.92,0.801]
[1750196593002,1.15408875,648.24,647.92,0.801]
[1750196593198,1.15408875,648.23,647.92,0.801]
[1750196595508,1.15408875,648.23,647.93,1.225]
[1750196601013,1.15408875,648.24,647.93,1.225]
[1750196601513,1.15408875,648.23,647.93,1.225]
[1750196601814,1.15408875,648.24,647.93,1.225]
[1750196602810,1.15408875,648.23,647.93,1.225]
[1750196605218,1.15408875,648.23,647.94,1.122]
[1750196609618,1.15408875,648.22,647.94,1.122]
[1750196611217,1.15408875,648.21,647.94,1.122]
[1750196613221,1.15408875,648.2,647.94,1.122]
[1750196616925,1.15408875,648.2,647.95,1.383]
[1750196621433,1.15408875,648.2,647.96,1.217]
[1750196623130,1.15408875,648.19,647.96,1.217]
[1750196625233,1.15408875,648.18,647.96,1.217]
[1750196625631,1.15408875,648.19,647.96,1.217]
[1750196626234,1.15408875,648.18,647.96,1.217]
[1750196627731,1.15408875,648.39,647.96,1.217]
[1750196627935,1.15408875,648.41,647.96,1.217]
[1750196628236,1.15408875,648.43,647.96,1.217]
[1750196628637,1.15408875,648.45,647.96,1.217]
[1750196629341,1.15408875,648.46,647.96,1.217]
[1750196630936,1.15408875,648.45,647.96,1.217]
[1750196631136,1.15408875,648.43,647.96,1.217]
[1750196631341,1.15408875,648.46,647.96,1.217]
[1750196631641,1.15408875,648.45,647.96,1.217]
[1750196632236,1.15408875,648.46,647.96,1.217]
[1750196636040,1.15408875,648.49,647.97,1.202]
[1750196636245,1.15408875,648.5,647.97,1.202]
[1750196636446,1.15408875,648.49,647.97,1.202]
[1750196636946,1.15408875,648.5,647.97,1.202]
[1750196637548,1.15408875,648.49,647.97,1.202]
[1750196640747,1.15408875,648.47,647.97,1.202]
[1750196641549,1.15408875,648.48,647.97,1.202]
[1750196642246,1.15408875,648.49,647.97,1.202]
[1750196642449,1.15408875,648.48,647.97,1.202]
[1750196643049,1.15408875,648.47,647.97,1.202]
[1750196643650,1.15408875,648.45,647.97,1.202]
[1750196644146,0.26844809,648.51,647.97,1.202]
[1750196644147,1.15408875,648.42,647.97,1.202]
[1750196645546,0.26844809,648.51,647.97,1.202]
[1750196645748,1.15365554,648.42,647.97,1.202]
[1750196647452,1.15365554,648.41,647.97,1.202]
[1750196648247,1.15365554,648.4,647.97,1.202]
[1750196648749,1.15365554,648.39,647.98,1.449]
[1750196648949,1.15365554,648.38,647.98,1.449]
[1750196649251,1.15365554,648.4,647.98,1.449]
[1750196649452,1.15365554,648.38,647.98,1.449]
[1750196649753,1.15365554,648.39,647.98,1.449]
[1750196650053,1.15365554,648.4,647.98,1.449]
[1750196651357,1.15365554,648.39,647.98,1.449]
[1750196652057,1.15365554,648.37,647.98,1.449]
[1750196652252,1.15365554,648.38,647.98,1.449]
[1750196652852,1.15365554,648.37,647.98,1.449]
[1750196653056,1.15365554,648.38,647.98,1.449]
[1750196653553,1.15365554,648.37,647.98,1.449]
[1750196653854,1.15365554,648.36,647.98,1.449]
[1750196654253,1.15365554,648.37,647.98,1.449]
[1750196657055,1.15365554,648.36,647.98,1.449]
[1750196659661,1.15365554,648.35,647.98,1.449]
[1750196660460,1.15365554,648.36,647.98,1.449]
[1750196661358,1.15365554,648.35,647.98,1.449]
[1750196661561,1.15365554,648.36,647.98,1.449]
[1750196662060,1.15365554,648.35,647.99,1.388]
[1750196667266,1.15385271,648.35,647.99,1.388]
[1750196668063,1.15385271,648.34,647.99,1.388]
[1750196668665,1.15385271,648.35,647.99,1.388]
[1750196669169,1.15385271,648.34,647.99,1.388]
[1750196671371,1.15385271,648.34,648.0,1.357]
[1750196674670,1.15385271,648.33,648.0,1.357]
[1750196674870,1.15385271,648.3,648.0,1.357]
[1750196676077,1.15385271,648.3,648.01,1.225]
[1750196678378,1.15385271,648.29,648.01,1.225]
[1750196682181,1.15385271,648.28,648.01,1.225]
[1750196684881,1.15385271,648.28,647.88,1.15385271]
[1750196685583,1.15385271,648.27,647.88,1.15385271]
[1750196686582,1.15385271,648.27,647.89,1.15385271]
[1750196689886,1.15385271,648.27,647.9,2.399]
[1750196690187,1.15385271,648.27,647.91,0.916]
[1750196705201,1.15385271,648.26,647.91,0.916]
[1750196710306,1.15385271,648.26,647.9,3.55285271]
[1750196711104,1.15385271,648.26,647.91,1.15385271]
[1750196712403,1.15385271,648.26,647.9,2.30585271]
[1750196713005,1.15385271,648.26,647.91,1.15385271]
[1750196713206,1.15385271,648.26,647.91,2.60285271]
[1750196713705,1.15385271,648.26,647.91,1.449]
[1750196714004,1.15385271,648.26,647.92,0.887]
[1750196715404,2.29263255,648.48,647.92,0.887]
[1750196715405,1.15385271,648.28,647.92,2.04085271]
[1750196716809,1.15385271,648.27,647.93,1.15385271]
[1750196717506,1.15385271,648.28,647.94,1.141]
[1750196720112,1.15385271,648.27,647.94,1.141]
[1750196722510,1.15385271,648.28,647.94,1.141]
[1750196722815,1.53820739,648.38,647.94,1.141]
[1750196723015,1.15605919,648.28,647.94,1.141]
[1750196723216,1.15605919,648.27,647.94,1.141]
[1750196723714,1.15605919,648.28,647.94,2.29705919]
[1750196724014,1.15605919,648.27,647.94,1.141]
[1750196725614,0.26844809,648.51,647.94,2.29705919]
[1750196725615,1.15605919,648.28,647.94,2.29705919]
[1750196725817,1.15605919,648.29,647.95,1.15605919]
[1750196728718,1.15605919,648.3,647.95,1.15605919]
[1750196731321,1.15605919,648.3,647.94,2.29705919]
[1750196732121,1.15605919,648.3,647.95,1.15605919]
[1750196733225,1.15605919,648.3,647.94,2.29705919]
[1750196733526,1.15605919,648.3,647.95,1.15605919]
[1750196734322,1.15605919,648.31,647.94,2.29705919]
[1750196736625,1.15605919,648.31,647.94,1.15605919]
[1750196740131,1.15605919,648.31,647.95,1.449]
[1750196740330,1.15605919,648.31,647.95,2.454]
[1750196744442,1.15605919,648.31,647.95,3.61005919]
[1750196746140,1.15605919,648.31,647.95,2.454]
[1750196746639,1.15605919,648.31,647.95,3.61005919]
[1750196746835,1.15605919,648.31,647.96,0.906]
[1750196750336,1.15605919,648.3,647.96,0.906]
[1750196750840,1.15605919,648.31,647.96,0.906]
[1750196756542,1.53820739,648.41,647.96,0.906]
[1750196756845,1.15567382,648.31,647.96,0.906]
[1750196757741,1.15567382,648.31,647.95,3.60967382]
[1750196759245,1.15567382,648.31,647.95,2.16067382]
[1750196759847,1.15567382,648.3,647.95,1.005]
[1750196760042,1.15567382,648.3,647.96,1.185]
[1750196762647,1.15567382,648.3,647.97,1.449]
[1750196768052,1.15567382,648.28,647.97,1.449]
[1750196768550,1.15567382,648.29,647.97,1.449]
[1750196768752,1.15567382,648.28,647.97,1.449]
[1750196768947,1.15567382,648.29,647.98,1.193]
[1750196769446,1.15567382,648.28,647.98,1.193]
[1750196769953,1.15567382,648.29,647.98,1.193]
[1750196771156,1.15567382,648.28,647.98,1.193]
[1750196771556,1.15567382,648.29,647.98,1.193]
[1750196772559,1.15567382,648.28,647.98,1.193]
[1750196775558,1.15567382,648.27,647.98,1.193]
[1750196775857,1.15567382,648.28,647.98,1.193]
[1750196778766,1.15567382,648.27,647.98,1.193]
[1750196780564,1.15567382,648.25,647.98,1.193]
[1750196782371,1.15567382,648.26,647.98,1.193]
[1750196782570,1.15567382,648.25,647.98,1.193]
[1750196782766,1.15567382,648.26,647.98,1.193]
[1750196782967,1.15627643,648.26,647.98,1.193]
[1750196785573,1.15627643,648.26,647.99,1.449]
[1750196787269,1.15627643,648.25,647.99,1.449]
[1750196787573,1.15627643,648.26,647.99,1.449]
[1750196787773,1.15627643,648.27,647.99,1.449]
[1750196787971,1.15627643,648.27,648.0,1.063]
[1750196790074,1.15627643,648.26,648.0,1.063]
[1750196791474,1.15627643,648.27,648.0,1.063]
[1750196796879,1.15627643,648.29,648.0,1.063]
[1750196799181,1.15627643,648.3,648.0,1.063]
[1750196801581,1.15627643,648.3,648.01,1.449]
[1750196801879,1.15627643,648.29,648.01,1.449]
[1750196803179,1.15627643,648.28,648.01,1.449]
[1750196806985,1.15627643,648.27,648.01,1.449]
[1750196807486,1.15627643,648.28,648.01,1.449]
[1750196808783,1.15627643,648.27,648.01,1.449]
[1750196809482,1.15627643,648.28,648.01,1.449]
[1750196813687,1.15627643,648.24,648.01,1.449]
[1750196815588,1.15627643,648.24,648.02,1.367]
[1750196816484,1.15627643,648.25,648.02,1.367]
[1750196817588,1.15627643,648.22,648.02,1.367]
[1750196817790,1.15627643,648.2,648.02,1.367]
[1750196820591,1.15627643,648.21,648.02,1.367]
[1750196821191,1.15627643,648.2,648.02,1.367]
[1750196821390,1.15627643,648.21,648.02,1.367]
[1750196822598,1.15627643,648.22,648.02,1.367]
[1750196823097,1.15525073,648.22,648.02,1.367]
[1750196823898,1.15525073,648.21,648.02,1.367]
[1750196824199,1.15525073,648.22,648.02,1.367]
[1750196824401,1.15525073,648.23,648.02,1.367]
[1750196824698,1.15525073,648.24,648.02,1.367]
[1750196824898,1.15525073,648.23,648.02,1.367]
[1750196825299,1.15525073,648.22,648.02,1.367]
[1750196825797,1.15525073,648.18,648.02,1.367]
[1750196826003,1.15525073,648.16,648.02,1.367]
[1750196826197,1.15525073,648.17,648.02,1.367]
[1750196826498,1.15525073,648.16,648.02,1.367]
[1750196827199,1.15525073,648.15,648.02,1.367]
[1750196827397,0.26844809,648.51,648.02,1.367]
[1750196827398,1.15525073,648.17,648.02,1.367]
[1750196827702,1.15525073,648.15,648.02,1.367]
[1750196828003,1.53820739,648.1,648.02,1.367]
[1750196828502,1.53820739,648.09,648.02,1.367]
[1750196828699,1.53820739,648.11,648.02,1.367]
[1750196828904,1.53820739,648.1,648.02,1.367]
[1750196829698,1.15324832,648.03,648.0,1.01]
[1750196830701,1.15324832,648.04,648.0,1.01]
[1750196831601,1.15324832,648.05,648.0,1.01]
[1750196832203,1.15324832,648.06,648.0,1.01]
[1750196832601,1.15324832,648.07,648.0,1.01]
[1750196833601,1.15324832,648.08,648.0,1.01]
[1750196835103,1.15324832,648.1,648.0,1.01]
[1750196835303,0.26856722,648.08,648.0,1.01]
[1750196837109,0.26856722,648.08,647.97,1.542]
[1750196852225,1.14803474,648.07,647.97,1.542]
[1750196852718,0.26856722,648.08,647.97,1.542]
[1750196852719,1.41660196,648.08,647.97,1.542]
[1750196855223,0.26856722,648.08,647.97,1.542]
[1750196856125,1.14803474,648.06,647.97,1.542]
[1750196856318,1.14803474,648.05,647.97,1.542]
[1750196857023,1.14803474,648.04,647.97,1.542]
[1750196858025,1.14789023,648.04,647.97,1.542]
[1750196860223,1.14789023,648.05,647.97,1.542]
[1750196860430,1.14789023,648.04,647.97,1.542]
[1750196861323,1.14789023,648.05,647.97,1.542]
[1750196862029,1.14789023,648.04,647.97,1.542]
[1750196862828,0.26856722,648.08,647.97,1.542]
[1750196863030,1.14799341,648.04,647.97,1.542]
[1750196865325,1.14799341,648.01,647.97,1.542]
[1750196865527,1.14799341,648.0,647.97,1.542]
[1750196865831,1.14799341,648.01,647.97,1.542]
[1750196866130,1.14799341,648.0,647.97,1.542]
[1750196866326,1.14799341,648.01,647.97,1.542]
[1750196866830,1.14799341,648.0,647.97,1.542]
[1750196868330,1.14799341,647.99,647.97,1.542]
[1750196869435,1.14799341,647.98,647.97,1.542]
[1750196871431,0.26856722,648.08,647.97,1.542]
[1750196871634,1.53071299,648.04,647.97,1.542]
[1750196872234,1.53071299,648.03,647.97,1.542]
[1750196872535,1.53071299,647.99,647.97,1.542]
[1750196872732,1.53071299,648.01,647.97,1.542]
[1750196873135,2.56463671,648.08,647.97,1.542]
[1750196873334,2.29606949,648.07,647.97,1.542]
[1750196873539,2.56463671,648.08,647.97,1.542]
[1750196873837,0.26856722,648.08,647.97,1.542]
[1750196874335,2.56463671,648.08,647.97,1.542]
[1750196874732,0.26856722,648.08,647.97,1.542]
[1750196874937,2.29606949,648.05,647.97,1.542]
[1750196875134,2.29606949,648.06,647.97,1.542]
[1750196875435,2.29606949,648.05,647.97,1.542]
[1750196875635,2.29606949,648.06,647.97,1.542]
[1750196875834,2.29606949,648.02,647.97,1.542]
[1750196876138,2.29606949,648.01,647.97,1.542]
[1750196876539,2.29606949,648.06,647.97,1.542]
[1750196877240,2.29606949,648.07,647.97,1.542]
[1750196877435,2.29606949,648.04,647.97,1.542]
[1750196877740,2.29606949,648.05,647.97,1.542]
[1750196878844,2.29606949,648.07,647.97,1.542]
[1750196880644,2.29606949,648.06,647.97,1.542]
[1750196880847,2.29606949,648.05,647.97,1.542]
[1750196881047,2.29606949,648.06,647.97,1.542]
[1750196881644,2.29606949,648.05,647.97,1.542]
[1750196882150,2.29606949,648.06,647.97,1.542]
[1750196882344,2.29606949,648.07,647.97,1.542]
[1750196882545,2.29606949,648.06,647.97,1.542]
[1750196883649,2.29606949,648.05,647.97,1.542]
[1750196885451,2.29606949,648.02,647.97,1.542]
[1750196885650,2.29606949,648.01,647.97,1.542]
[1750196885950,2.29606949,648.0,647.92,1.103]
[1750196886346,2.29606949,647.94,647.92,1.103]
[1750196886746,2.29606949,647.95,647.92,1.103]
[1750196887250,2.29606949,647.94,647.92,1.103]
[1750196887446,2.29606949,647.95,647.92,1.103]
[1750196887649,2.29606949,647.96,647.92,1.103]
[1750196887850,2.29606949,647.94,647.92,1.103]
[1750196888145,2.29606949,647.93,647.92,1.103]
[1750196888350,0.26856722,648.08,647.92,1.103]
[1750196888546,0.57717109,648.08,647.92,1.103]
[1750196888751,2.3027394,647.93,647.92,1.103]
[1750196888951,2.3027394,647.95,647.8,1.449]
[1750196889248,2.3027394,647.93,647.69,1.302]
[1750196889446,1.5349377,647.8,647.69,1.302]
[1750196889647,1.5349377,647.81,647.69,1.302]
[1750196889848,1.5349377,647.83,647.69,1.302]
[1750196890050,1.5349377,647.81,647.69,1.302]
[1750196890548,1.5349377,647.83,647.69,1.302]
[1750196890752,1.5349377,647.81,647.69,1.302]
[1750196890953,1.5349377,647.83,647.69,1.302]
[1750196891153,1.5349377,647.8,647.7,1.145]
[1750196892251,1.5349377,647.79,647.7,1.145]
[1750196892449,1.5349377,647.78,647.7,1.145]
[1750196892649,1.5349377,647.77,647.7,1.145]
[1750196893049,1.5349377,647.78,647.7,1.145]
[1750196893253,2.3027394,647.91,647.7,1.145]
[1750196893254,1.5349377,647.77,647.7,1.145]
[1750196895255,1.5349377,647.76,647.7,1.145]
[1750196896255,1.5349377,647.77,647.7,1.145]
[1750196898855,1.5349377,647.75,647.7,1.145]
[1750196899259,1.5349377,647.76,647.7,1.145]
[1750196899458,1.5349377,647.74,647.7,1.145]
[1750196900254,1.5349377,647.75,647.7,1.145]
[1750196902162,1.5349377,647.74,647.7,1.145]
[1750196905862,1.5349377,647.75,647.7,1.145]
[1750196906662,1.5349377,647.73,647.7,1.145]
[1750196907262,1.5349377,647.74,647.7,1.145]
[1750196908858,1.5349377,647.75,647.7,1.145]
[1750196909264,1.5349377,647.74,647.7,1.145]
[1750196909763,1.5349377,647.73,647.7,1.145]
[1750196910265,1.5349377,647.73,647.56,1.407]
[1750196910461,1.15051842,647.61,647.56,1.407]
[1750196910766,1.15051842,647.61,647.57,1.446]
[1750196913570,1.15051842,647.6,647.57,1.446]
[1750196914572,1.15051842,647.61,647.57,1.446]
[1750196914772,1.15051842,647.6,647.57,1.446]
[1750196916673,1.15051842,647.59,647.57,1.446]
[1750196918970,1.15051842,647.58,647.57,1.446]
[1750196920677,1.5349377,647.68,647.57,1.446]
[1750196922578,1.5349377,647.67,647.57,1.446]
[1750196924581,1.5349377,647.66,647.57,1.446]
[1750196926782,1.5349377,647.65,647.57,1.446]
[1750196927482,1.5349377,647.64,647.57,1.446]
[1750196928688,1.5349377,647.63,647.57,1.446]
[1750196929583,1.5349377,647.61,647.57,1.446]
[1750196929787,1.5349377,647.61,647.49,1.508]
[1750196930082,1.15473212,647.51,647.49,1.508]
[1750196930588,1.15473212,647.5,647.49,1.508]
[1750196931687,1.5349377,647.59,647.49,1.508]
[1750196932193,1.5349377,647.6,647.49,1.508]
[1750196932491,1.5349377,647.59,647.49,1.508]
[1750196932687,1.5349377,647.58,647.49,1.508]
[1750196933589,1.5349377,647.57,647.49,1.508]
[1750196933891,1.5349377,647.58,647.49,1.508]
[1750196935694,1.5349377,647.57,647.49,1.508]
[1750196936198,1.5349377,647.58,647.49,1.508]
[1750196936795,1.5349377,647.57,647.49,1.508]
[1750196939597,1.5349377,647.56,647.49,1.508]
[1750196942398,1.5349377,647.55,647.49,1.508]
[1750196944294,1.5349377,647.54,647.49,1.508]
[1750196945299,1.5349377,647.53,647.46,0.99]
[1750196945699,1.5349377,647.54,647.46,0.99]
[1750196946393,3.82678248,648.07,647.3,1.417]
[1750196946394,1.5349377,647.53,647.3,1.417]
[1750196946598,1.15768649,647.43,647.3,1.417]
[1750196947297,1.15768649,647.42,647.31,1.381]
[1750196947495,1.15768649,647.41,647.31,1.381]
[1750196948399,3.82678248,648.04,647.31,1.381]
[1750196948400,1.15768649,647.42,647.31,1.381]
[1750196949399,1.15768649,647.43,647.31,1.381]
[1750196949699,1.15768649,647.42,647.31,1.381]
[1750196949899,1.15768649,647.43,647.31,1.381]
[1750196950097,1.15768649,647.42,647.31,1.381]
[1750196950296,1.15768649,647.41,647.31,1.381]
[1750196951500,1.15768649,647.42,647.31,1.381]
[1750196951897,1.15768649,647.43,647.31,1.381]
[1750196952097,1.15768649,647.44,647.31,1.381]
[1750196952297,1.15768649,647.43,647.31,1.381]
[1750196952699,1.15768649,647.41,647.31,1.381]
[1750196953001,1.15768649,647.4,647.31,1.381]
[1750196954605,1.5349377,647.52,647.31,1.381]
[1750196954606,1.15768649,647.42,647.31,1.381]
[1750196954801,1.15768649,647.44,647.31,1.381]
[1750196955102,1.15768649,647.42,647.31,1.381]
[1750196955505,1.15768649,647.43,647.31,1.381]
[1750196956001,1.15768649,647.42,647.31,1.381]
[1750196958204,1.15768649,647.43,647.31,1.381]
[1750196962309,1.15768649,647.42,647.31,1.381]
[1750196965214,1.15768649,647.41,647.31,1.381]
[1750196968917,1.15768649,647.42,647.31,1.381]
[1750196972527,1.15768649,647.52,647.31,1.381]
[1750196972727,1.15768649,647.55,647.31,1.381]
[1750196973527,1.15768649,647.56,647.31,1.381]
[1750196974229,1.15768649,647.57,647.31,1.381]
[1750196976331,1.15768649,647.57,647.32,1.129]
[1750196977228,1.15768649,647.58,647.32,1.129]
[1750196981437,1.15768649,647.6,647.32,1.129]
[1750196981632,1.15673656,647.6,647.32,1.129]
[1750196982338,1.15673656,647.61,647.32,1.129]
[1750196982535,1.15673656,647.55,647.32,1.129]
[1750196983132,1.15673656,647.56,647.32,1.129]
[1750196984435,1.15673656,647.56,647.33,1.217]
[1750196986336,1.15673656,647.55,647.33,1.217]
[1750196988739,1.15673656,647.56,647.33,1.217]
[1750196990647,1.15673656,647.57,647.33,1.217]
[1750196996147,1.15673656,647.58,647.33,1.217]
[1750196996351,1.15673656,647.57,647.33,1.217]
[1750197000555,1.15673656,647.56,647.33,1.217]
[1750197003357,1.15673656,647.57,647.33,1.217]
[1750197005359,1.5349377,647.67,647.33,1.217]
[1750197005360,1.15673656,647.56,647.33,1.217]
[1750197006456,1.15673656,647.57,647.33,1.217]
[1750197011059,1.15673656,647.56,647.33,1.217]
[1750197018162,1.15673656,647.56,647.34,1.433]
[1750197022165,1.15673656,647.55,647.34,1.433]
[1750197023465,1.5349377,647.66,647.34,1.433]
[1750197023671,1.15620143,647.56,647.34,1.433]
[1750197027270,1.15620143,647.55,647.34,1.433]
[1750197027470,1.15620143,647.56,647.34,1.433]
[1750197028469,1.15620143,647.55,647.34,1.433]
[1750197028868,1.15620143,647.56,647.34,1.433]
[1750197029268,1.15620143,647.55,647.34,1.433]
[1750197029568,1.15620143,647.56,647.34,1.433]
[1750197029773,1.15620143,647.55,647.34,1.433]
[1750197030172,1.15620143,647.56,647.34,1.433]
[1750197030368,1.15620143,647.58,647.34,1.433]
[1750197031369,1.15620143,647.57,647.34,1.433]
[1750197031574,1.15620143,647.57,647.35,1.407]
[1750197032268,1.15620143,647.56,647.35,1.407]
[1750197032875,1.15620143,647.57,647.35,1.407]
[1750197033074,1.15620143,647.56,647.35,1.407]
[1750197033571,1.15620143,647.62,647.35,1.407]
[1750197034270,1.15620143,647.63,647.35,1.407]
[1750197034474,1.15620143,647.64,647.35,1.407]
[1750197035572,1.15620143,647.64,647.36,1.451]
[1750197036474,1.15620143,647.65,647.36,1.451]
[1750197039974,1.15620143,647.64,647.36,1.451]
[1750197040378,1.15620143,647.65,647.36,1.451]
[1750197043981,1.15620143,647.65,647.37,1.076]
[1750197045278,1.15620143,647.66,647.37,1.076]
[1750197045582,1.15620143,647.65,647.37,1.076]
[1750197046081,1.15620143,647.65,647.38,1.443]
[1750197046282,1.15620143,647.66,647.38,1.443]
[1750197050682,1.15620143,647.67,647.38,1.443]
[1750197050880,1.5349377,647.77,647.38,1.443]
[1750197051182,1.15555825,647.66,647.38,1.443]
[1750197051386,1.15555825,647.67,647.38,1.443]
[1750197051988,1.15555825,647.66,647.38,1.443]
[1750197052186,1.15555825,647.67,647.38,1.443]
[1750197053188,1.15555825,647.66,647.38,1.443]
[1750197053388,1.15555825,647.67,647.38,1.443]
[1750197060296,1.15555825,647.67,647.39,1.146]
[1750197065399,0.26874455,647.84,647.39,1.146]
[1750197065400,1.15555825,647.69,647.39,1.146]
[1750197066100,1.5349377,647.81,647.39,1.146]
[1750197066303,1.15539552,647.69,647.39,1.146]
[1750197067299,1.15539552,647.68,647.39,1.146]
[1750197067802,1.15539552,647.69,647.39,1.146]
[1750197068604,1.15539552,647.68,647.39,1.146]
[1750197069804,1.15539552,647.69,647.39,1.146]
[1750197072505,1.15539552,647.68,647.39,1.146]
[1750197073003,1.15539552,647.69,647.39,1.146]
[1750197073910,1.15539552,647.68,647.39,1.146]
[1750197075204,1.15539552,647.67,647.39,1.146]
[1750197075403,1.15539552,647.66,647.39,1.146]
[1750197075809,1.15539552,647.67,647.39,1.146]
[1750197076306,1.15539552,647.66,647.39,1.146]
[1750197079707,0.26874455,647.84,647.39,1.146]
[1750197079708,1.15539552,647.7,647.39,1.146]
[1750197081312,1.15539552,647.7,647.38,1.443]
[1750197082310,1.15539552,647.69,647.38,1.443]
[1750197085014,1.15539552,647.69,647.39,1.451]
[1750197085520,1.15539552,647.68,647.39,1.451]
[1750197089322,1.15539552,647.64,647.39,1.451]
[1750197089821,1.15539552,647.63,647.39,1.451]
[1750197091124,1.15539552,647.63,647.4,1.313]
[1750197092424,1.15539552,647.62,647.4,1.313]
[1750197093326,1.15539552,647.61,647.4,1.313]
[1750197098227,1.15539552,647.6,647.4,1.313]
[1750197098733,1.15539552,647.61,647.4,1.313]
[1750197098933,1.15539552,647.6,647.4,1.313]
[1750197099229,1.15539552,647.61,647.4,1.313]
[1750197099533,1.15779327,647.6,647.4,1.313]
[1750197101433,1.15779327,647.61,647.4,1.313]
[1750197102630,1.15779327,647.64,647.4,1.313]
[1750197102835,1.15779327,647.67,647.4,1.313]
[1750197103532,1.15779327,647.68,647.4,1.313]